fUST/lending_fUST_20250831
["ID","MTS","AMOUNT","RATE_DAILY","PERIOD"]
[382319673,1756577439700,-175.050326,0.00019068,2]
[382319675,1756577439710,-175.050326,0.00019068,2]
[382319677,1756577439719,-151.0,0.00019068,2]
[382319679,1756577439728,-175.050326,0.00019068,2]
[382319681,1756577439738,-151.0,0.00019068,2]
[382319683,1756577439747,-151.0,0.00019068,2]
[382319686,1756577439757,-151.0,0.00019068,2]
[382319688,1756577439766,-231.240743,0.00019068,2]
[382319690,1756577439775,-231.240743,0.00019068,2]
[382319691,1756577439784,-151.0,0.00019068,2]
[382319693,1756577439793,-231.240743,0.00019068,2]
[382319695,1756577439803,-231.240743,0.00019068,2]
[382319697,1756577439812,-151.0,0.00019068,2]
[382319699,1756577439821,-842.430538,0.00019068,2]
[382319702,1756577439831,-842.430538,0.00019068,2]
[382319705,1756577439840,-842.430538,0.00019068,2]
[382319708,1756577439850,-216.25802849,0.00019068,3]
[382319710,1756577439859,-842.430538,0.00019068,2]
[382319712,1756577439869,-753.315199,0.00019068,2]
[382319714,1756577439878,-151.0,0.00019068,2]
[382319716,1756577439887,-151.0,0.00019068,2]
[382319718,1756577439897,-238.894844,0.00019068,2]
[382319720,1756577439906,-529.89603018,0.00019068,3]
[382319722,1756577439915,-238.894844,0.00019068,2]
[382319724,1756577439925,-238.894844,0.00019068,2]
[382319726,1756577439935,-238.894844,0.00019068,2]
[382319728,1756577439944,-151.0,0.00019068,2]
[382319730,1756577439953,-151.0,0.00019068,2]
[382319732,1756577439962,-151.0,0.00019068,2]
[382319734,1756577439972,-151.0,0.00019068,2]
[382319736,1756577439982,-151.0,0.00019068,2]
[382319738,1756577439991,-11361.55901651,0.00019068,3]
[382319740,1756577440000,-151.0,0.00019068,2]
[382319742,1756577440009,-291.929321,0.00019068,2]
[382319744,1756577440019,-425.65682239,0.00019068,3]
[382319746,1756577440028,-500.0,0.00019077,2]
[382319748,1756577440037,-500.0,0.00019077,2]
[382319750,1756577440047,-500.0,0.00019077,2]
[382319752,1756577440056,-500.0,0.00019077,2]
[382319754,1756577440067,-500.0,0.00019077,2]
[382319756,1756577440076,-500.0,0.00019077,2]
[382319758,1756577440086,-500.0,0.00019077,2]
[382319760,1756577440096,-500.0,0.00019077,2]
[382319762,1756577440106,-151.0,0.00019077,2]
[382319772,1756577440279,-173.90427681,0.00019078,2]
[382319774,1756577440289,-1913.3988896,0.00019078,2]
[382319776,1756577440300,-1000.0,0.00019078,2]
[382319778,1756577440309,-168.0,0.00019091,2]
[382319780,1756577440319,-1543.71597637,0.000191,2]
[382319782,1756577440330,-200.0,0.000191,3]
[382319784,1756577440339,-151.0,0.000191,2]
[382319787,1756577440349,-151.0,0.000191,2]
[382319788,1756577440359,-974.0,0.0001911,2]
[382319791,1756577440368,-2152.0,0.0001911,2]
[382319792,1756577440378,-632.0,0.0001911,2]
[382319794,1756577440389,-195.0,0.00019135,2]
[382319796,1756577440399,-250.0,0.00019139,2]
[382319798,1756577440409,-207.833,0.00019139,2]
[382319800,1756577440419,-222.869,0.00019139,2]
[382319802,1756577440428,-204.131,0.00019139,2]
[382319804,1756577440438,-249.1,0.00019139,2]
[382319806,1756577440448,-250.304,0.00019139,2]
[382319808,1756577440458,-261.929,0.00019139,2]
[382319810,1756577440467,-220.618,0.00019139,2]
[382319812,1756577440477,-195.0,0.00019144,2]
[382319814,1756577440487,-500.0,0.00019173,2]
[382319816,1756577440496,-500.0,0.00019173,2]
[382319818,1756577440506,-500.0,0.00019173,2]
[382319820,1756577440515,-500.0,0.00019173,2]
[382319822,1756577440524,-377.58739239,0.00019173,2]
[382319825,1756577440535,-500.0,0.00019173,2]
[382319827,1756577440545,-500.0,0.00019173,2]
[382319829,1756577440554,-373.02747182,0.00019173,2]
[382319831,1756577440564,-500.0,0.00019173,2]
[382319833,1756577440573,-500.0,0.00019173,2]
[382319834,1756577440583,-608.64124363,0.00019173,2]
[382319837,1756577440593,-500.0,0.00019173,2]
[382319839,1756577440604,-212.75742335,0.00019173,2]
[382319841,1756577440614,-500.0,0.00019173,2]
[382319843,1756577440623,-500.0,0.00019173,2]
[382319845,1756577440632,-500.0,0.00019173,2]
[382319847,1756577440641,-500.0,0.00019173,2]
[382319849,1756577440650,-502.15233491,0.00019173,2]
[382319851,1756577440660,-500.0,0.00019173,2]
[382319853,1756577440669,-476.43121996,0.00019173,2]
[382319855,1756577440678,-500.0,0.00019173,2]
[382319857,1756577440688,-426.9055883,0.00019173,2]
[382319859,1756577440698,-501.60557537,0.00019173,2]
[382319861,1756577440707,-500.0,0.00019173,2]
[382319863,1756577440717,-244.67576448,0.00019173,2]
[382319865,1756577440726,-500.0,0.00019173,2]
[382319867,1756577440735,-554.46295892,0.00019173,2]
[382319869,1756577440745,-500.0,0.00019173,2]
[382319871,1756577440754,-500.0,0.00019173,2]
[382319873,1756577440763,-500.0,0.00019173,2]
[382319875,1756577440773,-500.0,0.00019173,2]
[382319876,1756577440782,-500.0,0.00019173,2]
[382319878,1756577440791,-500.0,0.00019173,2]
[382319880,1756577440801,-500.0,0.00019173,2]
[382319882,1756577440810,-500.0,0.00019173,2]
[382319884,1756577440819,-500.0,0.00019173,2]
[382319886,1756577440829,-501.88061265,0.00019173,2]
[382319888,1756577440838,-227.83406372,0.00019173,2]
[382319890,1756577440848,-500.0,0.00019173,2]
[382319892,1756577440857,-500.0,0.00019173,2]
[382319894,1756577440866,-500.0,0.00019173,2]
[382319896,1756577440876,-500.0,0.00019173,2]
[382319898,1756577440885,-500.0,0.00019173,2]
[382319900,1756577440894,-500.0,0.00019173,2]
[382319902,1756577440904,-322.37188715,0.00019173,2]
[382319904,1756577440913,-169.9133702,0.00019173,2]
[382319906,1756577440923,-500.85274947,0.00019173,2]
[382319908,1756577440932,-490.16888395,0.00019173,2]
[382319910,1756577440942,-367.51569067,0.00019173,2]
[382319912,1756577440952,-500.0,0.00019173,2]
[382319915,1756577440963,-500.0,0.00019173,2]
[382319917,1756577440972,-168.19645854,0.00019173,2]
[382319919,1756577440982,-500.0,0.00019173,2]
[382319921,1756577440991,-500.0,0.00019173,2]
[382319923,1756577441001,-500.0,0.00019173,2]
[382319925,1756577441011,-252.44391793,0.00019173,2]
[382319927,1756577441020,-500.0,0.00019177,2]
[382319929,1756577441030,-346.25796041,0.00019177,2]
[382319931,1756577441039,-3784.19446071,0.00019178,2]
[382319933,1756577441049,-500.0,0.00019178,2]
[382319935,1756577441059,-480.0,0.00019178,2]
[382319937,1756577441069,-480.0,0.00019178,2]
[382319939,1756577441078,-480.0,0.00019178,2]
[382319941,1756577441087,-480.0,0.00019178,2]
[382319943,1756577441097,-480.0,0.00019178,2]
[382319945,1756577441107,-480.0,0.00019178,2]
[382319947,1756577441115,-480.0,0.00019178,2]
[382319949,1756577441125,-480.0,0.00019178,2]
[382319951,1756577441135,-480.0,0.00019178,2]
[382319953,1756577441146,-480.0,0.00019178,2]
[382319955,1756577441156,-456.10223806,0.00019178,2]
[382319957,1756577441165,-296.88828713,0.00019178,2]
[382319959,1756577441175,-783.69,0.00019178,2]
[382319961,1756577441184,-500.0,0.00019178,2]
[382319963,1756577441194,-480.0,0.00019178,2]
[382319965,1756577441203,-480.0,0.00019178,2]
[382319967,1756577441213,-480.0,0.00019178,2]
[382319969,1756577441222,-480.0,0.00019178,2]
[382319971,1756577441232,-480.0,0.00019178,2]
[382319973,1756577441245,-480.0,0.00019178,2]
[382319975,1756577441255,-480.0,0.00019178,2]
[382319977,1756577441264,-480.0,0.00019178,2]
[382319979,1756577441274,-480.0,0.00019178,2]
[382319981,1756577441283,-480.0,0.00019178,2]
[382319983,1756577441292,-480.0,0.00019178,2]
[382319985,1756577441301,-437.26932811,0.00019178,2]
[382319987,1756577441311,-480.0,0.00019178,2]
[382319989,1756577441320,-155.1116,0.00019178,2]
[382319991,1756577441330,-480.0,0.00019178,2]
[382319993,1756577441339,-480.0,0.00019178,2]
[382319995,1756577441349,-480.0,0.00019178,2]
[382319997,1756577441359,-480.0,0.00019178,2]
[382319999,1756577441368,-480.0,0.00019178,2]
[382320001,1756577441377,-161.83628368,0.00019178,2]
[382320003,1756577441387,-480.0,0.00019178,2]
[382320005,1756577441396,-480.0,0.00019178,2]
[382320007,1756577441405,-480.0,0.00019178,2]
[382320009,1756577441415,-480.0,0.00019178,2]
[382320010,1756577441425,-793.16,0.00019178,2]
[382320012,1756577441435,-480.0,0.00019178,2]
[382320015,1756577441444,-480.0,0.00019178,2]
[382320016,1756577441454,-151.0,0.00019178,2]
[382320018,1756577441464,-487.94,0.00019178,2]
[382320020,1756577441473,-480.0,0.00019178,2]
[382320022,1756577441483,-1762.69,0.00019178,2]
[382320024,1756577441492,-480.0,0.00019178,2]
[382320026,1756577441502,-480.0,0.00019178,2]
[382320029,1756577441511,-1308.22,0.00019178,2]
[382320031,1756577441521,-834.41,0.00019178,2]
[382320032,1756577441530,-543.93,0.00019178,2]
[382320034,1756577441540,-480.0,0.00019178,2]
[382320037,1756577441550,-480.0,0.00019178,2]
[382320039,1756577441559,-480.0,0.00019178,2]
[382320041,1756577441568,-1464.71,0.00019178,2]
[382320043,1756577441578,-151.0,0.00019178,2]
[382320044,1756577441587,-561.15,0.00019178,2]
[382320046,1756577441596,-480.0,0.00019178,2]
[382320048,1756577441605,-151.0,0.00019178,2]
[382320050,1756577441615,-480.0,0.00019178,2]
[382320052,1756577441624,-485.38515749,0.00019178,2]
[382320054,1756577441633,-480.0,0.00019178,2]
[382320056,1756577441642,-480.0,0.00019178,2]
[382320059,1756577441653,-480.0,0.00019178,2]
[382320060,1756577441663,-480.0,0.00019178,2]
[382320063,1756577441672,-523.51,0.00019178,2]
[382320065,1756577441682,-480.0,0.00019178,2]
[382320067,1756577441691,-743.88,0.00019178,2]
[382320069,1756577441701,-542.08,0.00019178,2]
[382320071,1756577441711,-1537.58,0.00019178,2]
[382320072,1756577441720,-508.4,0.00019178,2]
[382320074,1756577441730,-480.0,0.00019178,2]
[382320076,1756577441739,-480.0,0.00019178,2]
[382320078,1756577441749,-151.0,0.00019178,2]
[382320080,1756577441758,-480.0,0.00019178,2]
[382320082,1756577441768,-480.0,0.00019178,2]
[382320084,1756577441777,-747.06,0.00019178,2]
[382320086,1756577441788,-729.18,0.00019178,2]
[382320088,1756577441797,-480.0,0.00019178,2]
[382320090,1756577441807,-480.0,0.00019178,2]
[382320092,1756577441817,-480.0,0.00019178,2]
[382320094,1756577441827,-480.0,0.00019178,2]
[382320096,1756577441836,-480.0,0.00019178,2]
[382320099,1756577441846,-480.0,0.00019178,2]
[382320102,1756577441867,-227.29189616,0.00019178,2]
[382320104,1756577441877,-1218.68,0.00019178,2]
[382320106,1756577441887,-480.0,0.00019178,2]
[382320108,1756577441896,-480.0,0.00019178,2]
[382320110,1756577441906,-406.68447411,0.00019178,2]
[382320112,1756577441917,-480.0,0.00019178,2]
[382320114,1756577441932,-480.0,0.00019178,2]
[382320116,1756577441942,-480.0,0.00019178,2]
[382320118,1756577441952,-480.0,0.00019178,2]
[382320120,1756577441962,-480.0,0.00019178,2]
[382320122,1756577441972,-649.53,0.00019178,2]
[382320125,1756577441982,-480.0,0.00019178,2]
[382320127,1756577441992,-480.0,0.00019178,2]
[382320129,1756577442002,-480.0,0.00019178,2]
[382320131,1756577442012,-480.0,0.00019178,2]
[382320133,1756577442022,-480.0,0.00019178,2]
[382320135,1756577442033,-480.0,0.00019178,2]
[382320137,1756577442046,-480.0,0.00019178,2]
[382320139,1756577442057,-151.0,0.00019178,2]
[382320141,1756577442068,-480.0,0.00019178,2]
[382320143,1756577442078,-480.0,0.00019178,2]
[382320146,1756577442091,-835.47,0.00019178,2]
[382320148,1756577442102,-480.0,0.00019178,2]
[382320150,1756577442111,-480.0,0.00019178,2]
[382320152,1756577442121,-480.0,0.00019178,2]
[382320154,1756577442131,-480.0,0.00019178,2]
[382320156,1756577442141,-680.22,0.00019178,2]
[382320158,1756577442151,-151.0,0.00019178,2]
[382320160,1756577442162,-1971.99,0.00019178,2]
[382320163,1756577442172,-480.0,0.00019178,2]
[382320165,1756577442183,-151.0,0.00019178,2]
[382320167,1756577442193,-151.0,0.00019178,2]
[382320169,1756577442202,-151.0,0.00019178,2]
[382320172,1756577442212,-480.0,0.00019178,2]
[382320175,1756577442222,-151.0,0.00019178,2]
[382320177,1756577442232,-151.0,0.00019178,2]
[382320179,1756577442247,-480.0,0.00019178,2]
[382320181,1756577442256,-260.18,0.00019178,2]
[382320183,1756577442266,-603.36,0.00019178,2]
[382320185,1756577442276,-647.17,0.00019178,2]
[382320187,1756577442287,-2052.85,0.00019178,2]
[382320189,1756577442297,-480.0,0.00019178,2]
[382320191,1756577442307,-480.0,0.00019178,2]
[382320193,1756577442319,-480.0,0.00019178,2]
[382320195,1756577442329,-480.0,0.00019178,2]
[382320197,1756577442339,-480.0,0.00019178,2]
[382320199,1756577442349,-480.0,0.00019178,2]
[382320201,1756577442359,-480.0,0.00019178,2]
[382320203,1756577442368,-707.81,0.00019178,2]
[382320205,1756577442378,-1941.02,0.00019178,2]
[382320207,1756577442388,-480.0,0.00019178,2]
[382320209,1756577442398,-480.0,0.00019178,2]
[382320211,1756577442408,-480.0,0.00019178,2]
[382320213,1756577442418,-154.290052,0.00019178,2]
[382320215,1756577442428,-480.0,0.00019178,2]
[382320217,1756577442439,-499.12,0.00019178,2]
[382320219,1756577442448,-822.65,0.00019178,2]
[382320221,1756577442458,-161.94451285,0.00019178,2]
[382320224,1756577442469,-1442.81,0.00019178,2]
[382320226,1756577442479,-480.0,0.00019178,2]
[382320228,1756577442489,-319.92826557,0.00019178,2]
[382320230,1756577442499,-480.0,0.00019178,2]
[382320232,1756577442509,-480.0,0.00019178,2]
[382320234,1756577442519,-480.0,0.00019178,2]
[382320236,1756577442528,-513.78122569,0.00019178,2]
[382320238,1756577442539,-480.0,0.00019178,2]
[382320240,1756577442548,-518.43,0.00019178,2]
[382320242,1756577442560,-480.0,0.00019178,2]
[382320244,1756577442570,-480.0,0.00019178,2]
[382320246,1756577442579,-824.61,0.00019178,2]
[382320248,1756577442590,-480.0,0.00019178,2]
[382320250,1756577442599,-608.83,0.00019178,2]
[382320252,1756577442609,-480.0,0.00019178,2]
[382320254,1756577442621,-480.0,0.00019178,2]
[382320256,1756577442630,-480.0,0.00019178,2]
[382320258,1756577442640,-480.0,0.00019178,2]
[382320260,1756577442649,-1140.18,0.00019178,2]
[382320262,1756577442658,-948.46,0.00019178,2]
[382320264,1756577442668,-1969.4,0.00019178,2]
[382320266,1756577442677,-151.902263,0.00019178,2]
[382320269,1756577442687,-810.38,0.00019178,2]
[382320271,1756577442697,-151.0,0.00019178,2]
[382320273,1756577442706,-151.0,0.00019178,2]
[382320275,1756577442716,-151.0,0.00019178,2]
[382320277,1756577442726,-480.0,0.00019178,2]
[382320279,1756577442735,-480.0,0.00019178,2]
[382320281,1756577442745,-480.0,0.00019178,2]
[382320283,1756577442754,-1775.3,0.00019178,2]
[382320285,1756577442764,-1123.06,0.00019178,2]
[382320287,1756577442773,-480.0,0.00019178,2]
[382320289,1756577442783,-151.0,0.00019178,2]
[382320291,1756577442792,-151.0,0.00019178,2]
[382320293,1756577442801,-151.779159,0.00019178,2]
[382320295,1756577442811,-480.0,0.00019178,2]
[382320297,1756577442821,-480.0,0.00019178,2]
[382320299,1756577442832,-480.0,0.00019178,2]
[382320301,1756577442841,-1206.29,0.00019178,2]
[382320303,1756577442851,-151.0,0.00019178,2]
[382320305,1756577442860,-151.0,0.00019178,2]
[382320307,1756577442870,-151.0,0.00019178,2]
[382320309,1756577442880,-151.0,0.00019178,2]
[382320311,1756577442890,-151.0,0.00019178,2]
[382320313,1756577442899,-151.0,0.00019178,2]
[382320315,1756577442909,-518.78,0.00019178,2]
[382320317,1756577442919,-151.0,0.00019178,2]
[382320319,1756577442928,-151.0,0.00019178,2]
[382320321,1756577442938,-151.0,0.00019178,2]
[382320323,1756577442947,-480.0,0.00019178,2]
[382320325,1756577442957,-151.0,0.00019178,2]
[382320327,1756577442966,-480.0,0.00019178,2]
[382320329,1756577442976,-276.697352,0.00019178,2]
[382320331,1756577442985,-480.0,0.00019178,2]
[382320333,1756577442995,-942.9,0.00019178,2]
[382320335,1756577443005,-480.0,0.00019178,2]
[382320337,1756577443014,-480.0,0.00019178,2]
[382320339,1756577443024,-480.0,0.00019178,2]
[382320341,1756577443034,-523.37629757,0.00019178,2]
[382320343,1756577443044,-480.0,0.00019178,2]
[382320345,1756577443053,-480.0,0.00019178,2]
[382320347,1756577443063,-624.42,0.00019178,2]
[382320349,1756577443073,-480.0,0.00019178,2]
[382320351,1756577443083,-480.0,0.00019178,2]
[382320353,1756577443093,-480.0,0.00019178,2]
[382320355,1756577443103,-480.0,0.00019178,2]
[382320357,1756577443112,-480.0,0.00019178,2]
[382320359,1756577443122,-480.0,0.00019178,2]
[382320361,1756577443131,-480.0,0.00019178,2]
[382320364,1756577443141,-151.0,0.00019178,2]
[382320366,1756577443150,-480.0,0.00019178,2]
[382320368,1756577443160,-151.0,0.00019178,2]
[382320370,1756577443170,-151.0,0.00019178,2]
[382320372,1756577443180,-568.35133622,0.00019178,2]
[382320374,1756577443191,-151.0,0.00019178,2]
[382320376,1756577443200,-151.0,0.00019178,2]
[382320378,1756577443210,-619.94,0.00019178,2]
[382320380,1756577443219,-480.0,0.00019178,2]
[382320399,1756577443387,-480.0,0.00019178,2]
[382320402,1756577443416,-1438.54,0.00019178,2]
[382320404,1756577443426,-480.0,0.00019178,2]
[382320406,1756577443435,-480.0,0.00019178,2]
[382320408,1756577443444,-480.0,0.00019178,2]
[382320410,1756577443454,-480.0,0.00019178,2]
[382320412,1756577443464,-1066.81,0.00019178,2]
[382320414,1756577443473,-480.0,0.00019178,2]
[382320416,1756577443482,-480.0,0.00019178,2]
[382320418,1756577443491,-763.93,0.00019178,2]
[382320420,1756577443501,-638.02,0.00019178,2]
[382320422,1756577443510,-443.83232177,0.00019178,2]
[382320424,1756577443520,-659.67,0.00019178,2]
[382320426,1756577443529,-480.0,0.00019178,2]
[382320428,1756577443538,-480.0,0.00019178,2]
[382320430,1756577443547,-480.0,0.00019178,2]
[382320432,1756577443556,-530.42,0.00019178,2]
[382320434,1756577443566,-480.0,0.00019178,2]
[382320436,1756577443576,-480.0,0.00019178,2]
[382320438,1756577443585,-1155.62,0.00019178,2]
[382320440,1756577443594,-603.12,0.00019178,2]
[382320442,1756577443604,-151.0,0.00019178,2]
[382320444,1756577443614,-151.0,0.00019178,2]
[382320446,1756577443623,-151.0,0.00019178,2]
[382320448,1756577443632,-151.0,0.00019178,2]
[382320450,1756577443643,-151.0,0.00019178,2]
[382320452,1756577443652,-151.0,0.00019178,2]
[382320454,1756577443661,-151.0,0.00019178,2]
[382320456,1756577443671,-151.0,0.00019178,2]
[382320458,1756577443680,-151.0,0.00019178,2]
[382320460,1756577443690,-151.0,0.00019178,2]
[382320462,1756577443699,-151.0,0.00019178,2]
[382320464,1756577443709,-151.0,0.00019178,2]
[382320466,1756577443718,-151.0,0.00019178,2]
[382320468,1756577443728,-151.0,0.00019178,2]
[382320470,1756577443738,-151.0,0.00019178,2]
[382320472,1756577443747,-151.0,0.00019178,2]
[382320474,1756577443760,-151.0,0.00019178,2]
[382320476,1756577443770,-151.0,0.00019178,2]
[382320478,1756577443781,-151.0,0.00019178,2]
[382320480,1756577443791,-151.0,0.00019178,2]
[382320482,1756577443801,-151.0,0.00019178,2]
[382320484,1756577443810,-151.0,0.00019178,2]
[382320486,1756577443819,-480.0,0.00019178,2]
[382320488,1756577443829,-151.0,0.00019178,2]
[382320490,1756577443839,-151.0,0.00019178,2]
[382320493,1756577443849,-151.0,0.00019178,2]
[382320494,1756577443859,-151.0,0.00019178,2]
[382320496,1756577443869,-256.151944,0.00019178,2]
[382320498,1756577443878,-480.0,0.00019178,2]
[382320500,1756577443887,-592.25776324,0.00019178,2]
[382320502,1756577443896,-151.0,0.00019178,2]
[382320504,1756577443906,-151.0,0.00019178,2]
[382320506,1756577443915,-151.0,0.00019178,2]
[382320508,1756577443925,-248.952943,0.00019178,2]
[382320510,1756577443934,-151.0,0.00019178,2]
[382320512,1756577443943,-480.0,0.00019178,2]
[382320514,1756577443952,-275.124106,0.00019178,2]
[382320516,1756577443961,-1746.59,0.00019178,2]
[382320518,1756577443970,-480.0,0.00019178,2]
[382320520,1756577443980,-480.0,0.00019178,2]
[382320522,1756577443990,-480.0,0.00019178,2]
[382320524,1756577444000,-887.73,0.00019178,2]
[382320526,1756577444011,-151.0,0.00019178,2]
[382320528,1756577444022,-151.0,0.00019178,2]
[382320530,1756577444032,-584.48,0.00019178,2]
[382320533,1756577444042,-1395.8,0.00019178,2]
[382320535,1756577444051,-480.0,0.00019178,2]
[382320537,1756577444062,-480.0,0.00019178,2]
[382320539,1756577444072,-1165.51,0.00019178,2]
[382320541,1756577444081,-790.14,0.00019178,2]
[382320543,1756577444091,-992.0,0.00019178,2]
[382320545,1756577444101,-480.0,0.00019178,2]
[382320547,1756577444110,-480.0,0.00019178,2]
[382320549,1756577444120,-743.94,0.00019178,2]
[382320551,1756577444129,-808.21,0.00019178,2]
[382320553,1756577444139,-480.0,0.00019178,2]
[382320555,1756577444148,-611.27,0.00019178,2]
[382320557,1756577444157,-480.0,0.00019178,2]
[382320558,1756577444167,-485.00095298,0.00019178,2]
[382320561,1756577444176,-480.0,0.00019178,2]
[382320563,1756577444185,-698.1,0.00019178,2]
[382320565,1756577444195,-480.0,0.00019178,2]
[382320566,1756577444205,-1247.19,0.00019178,2]
[382320568,1756577444215,-586.06,0.00019178,2]
[382320570,1756577444225,-480.0,0.00019178,2]
[382320572,1756577444235,-357.12882392,0.00019178,2]
[382320574,1756577444251,-480.0,0.00019178,2]
[382320577,1756577444262,-480.0,0.00019178,2]
[382320578,1756577444271,-480.0,0.00019178,2]
[382320580,1756577444281,-480.0,0.00019178,2]
[382320582,1756577444291,-480.0,0.00019178,2]
[382320584,1756577444301,-1465.95,0.00019178,2]
[382320586,1756577444312,-502.35,0.00019178,2]
[382320588,1756577444323,-480.0,0.00019178,2]
[382320590,1756577444333,-363.89564432,0.00019178,2]
[382320592,1756577444342,-660.17,0.00019178,2]
[382320594,1756577444352,-480.0,0.00019178,2]
[382320596,1756577444361,-480.0,0.00019178,2]
[382320598,1756577444370,-480.0,0.00019178,2]
[382320599,1756577444379,-480.0,0.00019178,2]
[382320600,1756577444389,-1683.29,0.00019178,2]
[382320601,1756577444398,-552.58,0.00019178,2]
[382320602,1756577444408,-480.0,0.00019178,2]
[382320603,1756577444417,-480.0,0.00019178,2]
[382320604,1756577444426,-480.0,0.00019178,2]
[382320605,1756577444435,-480.0,0.00019178,2]
[382320606,1756577444444,-2257.32,0.00019178,2]
[382320607,1756577444453,-492.57,0.00019178,2]
[382320608,1756577444462,-151.0,0.00019178,2]
[382320609,1756577444471,-907.28,0.00019178,2]
[382320610,1756577444480,-480.0,0.00019178,2]
[382320611,1756577444489,-480.0,0.00019178,2]
[382320612,1756577444498,-151.0,0.00019178,2]
[382320614,1756577444507,-151.0,0.00019178,2]
[382320616,1756577444516,-480.0,0.00019178,2]
[382320618,1756577444526,-480.0,0.00019178,2]
[382320620,1756577444535,-151.0,0.00019178,2]
[382320622,1756577444543,-151.0,0.00019178,2]
[382320624,1756577444552,-480.0,0.00019178,2]
[382320626,1756577444562,-1761.33,0.00019178,2]
[382320628,1756577444572,-684.89,0.00019178,2]
[382320630,1756577444581,-480.0,0.00019178,2]
[382320632,1756577444590,-480.0,0.00019178,2]
[382320634,1756577444600,-496.78,0.00019178,2]
[382320636,1756577444609,-1340.43,0.00019178,2]
[382320638,1756577444619,-480.0,0.00019178,2]
[382320640,1756577444629,-494.01,0.00019178,2]
[382320642,1756577444639,-932.64,0.00019178,2]
[382320644,1756577444648,-480.0,0.00019178,2]
[382320646,1756577444659,-480.0,0.00019178,2]
[382320648,1756577444668,-1157.6,0.00019178,2]
[382320650,1756577444678,-480.0,0.00019178,2]
[382320652,1756577444687,-480.0,0.00019178,2]
[382320654,1756577444696,-572.22156623,0.00019178,2]
[382320656,1756577444706,-480.0,0.00019178,2]
[382320658,1756577444715,-480.0,0.00019178,2]
[382320660,1756577444724,-480.0,0.00019178,2]
[382320662,1756577444734,-480.0,0.00019178,2]
[382320664,1756577444746,-1751.69,0.00019178,2]
[382320666,1756577444755,-480.0,0.00019178,2]
[382320668,1756577444764,-480.0,0.00019178,2]
[382320670,1756577444773,-480.0,0.00019178,2]
[382320672,1756577444782,-480.0,0.00019178,2]
[382320674,1756577444793,-151.0,0.00019178,2]
[382320676,1756577444802,-151.0,0.00019178,2]
[382320678,1756577444811,-1392.76,0.00019178,2]
[382320680,1756577444821,-151.0,0.00019178,2]
[382320682,1756577444832,-1386.38,0.00019178,2]
[382320684,1756577444842,-480.0,0.00019178,2]
[382320686,1756577444853,-151.0,0.00019178,2]
[382320688,1756577444863,-480.0,0.00019178,2]
[382320690,1756577444873,-1000.0,0.00019178,2]
[382320692,1756577444882,-1836.41,0.00019178,2]
[382320694,1756577444892,-660.43,0.00019178,2]
[382320696,1756577444903,-480.0,0.00019178,2]